[Event "Live Chess"]
[Site "Chess.com"]
[Date "2023.05.21"]
[Round "-"]
[White "Crowded_House"]
[Black "Driftboard"]
[Result "1-0"]
[WhiteElo "1673"]
[BlackElo "812"]
[TimeControl "300"]
[EndTime "0:11:58 PDT"]
[Termination "Crowded_House won by checkmate"]

1. d4 {[%clk 0:04:59.2]} 1... d5 {[%clk 0:04:58.4]} 2. Bg5 {[%clk 0:04:57.3]}
2... Nc6 {[%clk 0:04:57.8]} 3. e3 {[%clk 0:04:55.8]} 3... Nf6 {[%clk 0:04:56.4]}
4. Nd2 {[%clk 0:04:53.8]} 4... Bf5 {[%clk 0:04:55.2]} 5. c3 {[%clk 0:04:51.5]}
5... e6 {[%clk 0:04:54]} 6. Ngf3 {[%clk 0:04:49.8]} 6... Be7 {[%clk 0:04:53.2]}
7. Nb3 {[%clk 0:04:46]} 7... h6 {[%clk 0:04:50.6]} 8. Bh4 {[%clk 0:04:44.3]}
8... g5 {[%clk 0:04:44.6]} 9. Bg3 {[%clk 0:04:39.3]} 9... Ne4 {[%clk 0:04:43.6]}
10. Bd3 {[%clk 0:04:32.8]} 10... Nxg3 {[%clk 0:04:41.4]} 11. hxg3 {[%clk
0:04:32.5]} 11... Bxd3 {[%clk 0:04:40]} 12. Qxd3 {[%clk 0:04:30.3]} 12... Qd7
{[%clk 0:04:39.6]} 13. O-O-O {[%clk 0:04:21.4]} 13... O-O-O {[%clk 0:04:38.9]}
14. e4 {[%clk 0:03:59.1]} 14... dxe4 {[%clk 0:04:29.1]} 15. Qxe4 {[%clk
0:03:56]} 15... f5 {[%clk 0:04:18.2]} 16. Qe3 {[%clk 0:03:44.1]} 16... Bf6
{[%clk 0:04:06]} 17. Kb1 {[%clk 0:03:42]} 17... Rdg8 {[%clk 0:03:56.2]} 18. Rhe1
{[%clk 0:03:39.8]} 18... Re8 {[%clk 0:03:52.9]} 19. Nc5 {[%clk 0:03:28.7]} 19...
Qe7 {[%clk 0:03:41.9]} 20. Qd3 {[%clk 0:03:13.6]} 20... Qf7 {[%clk 0:03:32.9]}
21. Qb5 {[%clk 0:03:06]} 21... Nd8 {[%clk 0:03:06.5]} 22. Ne5 {[%clk 0:02:44.9]}
22... Bxe5 {[%clk 0:03:03.8]} 23. Rxe5 {[%clk 0:02:42]} 23... a6 {[%clk
0:02:54.5]} 24. Qb3 {[%clk 0:02:34]} 24... b6 {[%clk 0:02:49.8]} 25. Nxa6 {[%clk
0:02:27.8]} 25... Kb7 {[%clk 0:02:46.7]} 26. Nb4 {[%clk 0:02:23.1]} 26... Nc6
{[%clk 0:02:38.1]} 27. Nxc6 {[%clk 0:02:19.6]} 27... Kxc6 {[%clk 0:02:36.9]} 28.
Qb5+ {[%clk 0:02:16.3]} 28... Kb7 {[%clk 0:02:34.7]} 29. Rde1 {[%clk 0:02:14.4]}
29... c6 {[%clk 0:02:27.2]} 30. Qb3 {[%clk 0:02:08.6]} 30... b5 {[%clk
0:02:11.4]} 31. Rxe6 {[%clk 0:02:05.1]} 31... Rxe6 {[%clk 0:02:11]} 32. Qxe6
{[%clk 0:02:00.9]} 32... Qxe6 {[%clk 0:02:08.9]} 33. Rxe6 {[%clk 0:02:00.5]}
33... h5 {[%clk 0:02:05]} 34. Rf6 {[%clk 0:01:51.3]} 34... f4 {[%clk 0:02:03.7]}
35. gxf4 {[%clk 0:01:49.4]} 35... gxf4 {[%clk 0:02:03.2]} 36. Rxf4 {[%clk
0:01:47.8]} 36... Rg8 {[%clk 0:02:00.9]} 37. g3 {[%clk 0:01:45.4]} 37... Rh8
{[%clk 0:01:59.1]} 38. Rh4 {[%clk 0:01:43.1]} 38... Kc7 {[%clk 0:01:49.6]} 39.
g4 {[%clk 0:01:37.1]} 39... Kd6 {[%clk 0:01:46.3]} 40. Rxh5 {[%clk 0:01:32.9]}
40... Ke6 {[%clk 0:01:45.4]} 41. Rxh8 {[%clk 0:01:31.1]} 41... Kf6 {[%clk
0:01:44.4]} 42. Rh6+ {[%clk 0:01:30]} 42... Kg7 {[%clk 0:01:43]} 43. Rxc6 {[%clk
0:01:29.6]} 43... Kf7 {[%clk 0:01:41]} 44. Rc5 {[%clk 0:01:27.2]} 44... Ke7
{[%clk 0:01:40.3]} 45. Rxb5 {[%clk 0:01:25.5]} 45... Kd7 {[%clk 0:01:40]} 46.
Re5 {[%clk 0:01:22.6]} 46... Kc7 {[%clk 0:01:38.7]} 47. g5 {[%clk 0:01:22.3]}
47... Kb7 {[%clk 0:01:38.1]} 48. g6 {[%clk 0:01:21.9]} 48... Kc7 {[%clk
0:01:37.7]} 49. g7 {[%clk 0:01:21.5]} 49... Kb7 {[%clk 0:01:37.5]} 50. g8=Q
{[%clk 0:01:20.2]} 50... Kc7 {[%clk 0:01:37.2]} 51. Qg6 {[%clk 0:01:17.6]} 51...
Kb7 {[%clk 0:01:36.8]} 52. Rf5 {[%clk 0:01:17.2]} 52... Kc7 {[%clk 0:01:36.3]}
53. Rf7+ {[%clk 0:01:16.8]} 53... Kd8 {[%clk 0:01:35.6]} 54. Qg8# {[%clk
0:01:16.4]} 1-0

[Event "Live Chess"]
[Site "Chess.com"]
[Date "2023.05.21"]
[Round "-"]
[White "peter-785"]
[Black "seasidecastle27"]
[Result "0-1"]
[WhiteElo "1208"]
[BlackElo "1797"]
[TimeControl "300"]
[EndTime "0:12:09 PDT"]
[Termination "seasidecastle27 won by resignation"]

1. e4 {[%clk 0:04:57.3]} 1... d6 {[%clk 0:04:58.2]} 2. Nf3 {[%clk 0:04:55.9]}
2... e5 {[%clk 0:04:52.7]} 3. Bc4 {[%clk 0:04:54.8]} 3... Be7 {[%clk 0:04:50]}
4. d4 {[%clk 0:04:52.9]} 4... exd4 {[%clk 0:04:47.9]} 5. Nxd4 {[%clk 0:04:44.1]}
5... Nc6 {[%clk 0:04:46.7]} 6. Nf5 {[%clk 0:04:36.1]} 6... Bxf5 {[%clk
0:04:43.3]} 7. exf5 {[%clk 0:04:34.2]} 7... Nf6 {[%clk 0:04:41.7]} 8. O-O {[%clk
0:04:12.2]} 8... Qd7 {[%clk 0:04:39.4]} 9. Qf3 {[%clk 0:03:27.8]} 9... O-O
{[%clk 0:04:36.4]} 10. Nc3 {[%clk 0:03:23.3]} 10... Ne5 {[%clk 0:04:34]} 11. Qf4
{[%clk 0:03:16]} 11... Nxc4 {[%clk 0:04:28.7]} 12. Qxc4 {[%clk 0:03:15.4]} 12...
d5 {[%clk 0:04:09.1]} 13. Qb3 {[%clk 0:02:58.1]} 13... Qxf5 {[%clk 0:04:02.3]}
14. Be3 {[%clk 0:02:42.3]} 14... Bd6 {[%clk 0:03:56.1]} 15. h3 {[%clk
0:02:38.6]} 15... Qe5 {[%clk 0:03:43.5]} 16. f4 {[%clk 0:02:24.5]} 16... Qxe3+
{[%clk 0:03:40.2]} 17. Kh1 {[%clk 0:02:22.4]} 17... Ne4 {[%clk 0:03:26.7]} 18.
Nxe4 {[%clk 0:02:18.9]} 18... Qxe4 {[%clk 0:03:23.1]} 19. Rae1 {[%clk
0:02:15.3]} 19... Qf5 {[%clk 0:03:18.5]} 20. c3 {[%clk 0:01:43.5]} 20... Rae8
{[%clk 0:03:14.8]} 21. Rd1 {[%clk 0:01:34.9]} 21... Re4 {[%clk 0:03:08.3]} 22.
Rxd5 {[%clk 0:01:29.5]} 22... Qf6 {[%clk 0:02:52.7]} 23. Qxb7 {[%clk 0:01:19.6]}
23... Rxf4 {[%clk 0:02:49.4]} 24. Rxf4 {[%clk 0:01:16.4]} 24... Qxf4 {[%clk
0:02:47.6]} 25. Rxd6 {[%clk 0:01:04]} 25... cxd6 {[%clk 0:02:39.3]} 26. Qxa7
{[%clk 0:01:02.7]} 26... Re8 {[%clk 0:02:35.2]} 27. Qf2 {[%clk 0:00:50.6]} 27...
Qxf2 {[%clk 0:02:32.8]} 0-1

[Event "Live Chess"]
[Site "Chess.com"]
[Date "2023.05.21"]
[Round "-"]
[White "martynstanley"]
[Black "nigelst"]
[Result "0-1"]
[WhiteElo "988"]
[BlackElo "1698"]
[TimeControl "300"]
[EndTime "0:12:34 PDT"]
[Termination "nigelst won by checkmate"]

1. d4 {[%clk 0:04:59.2]} 1... Nf6 {[%clk 0:04:58.5]} 2. e3 {[%clk 0:04:57.2]}
2... e6 {[%clk 0:04:57.4]} 3. Bd3 {[%clk 0:04:56.3]} 3... c5 {[%clk 0:04:56.5]}
4. c3 {[%clk 0:04:55.1]} 4... b6 {[%clk 0:04:55.2]} 5. f4 {[%clk 0:04:54]} 5...
Bb7 {[%clk 0:04:53.7]} 6. Nf3 {[%clk 0:04:52.7]} 6... cxd4 {[%clk 0:04:52.3]} 7.
exd4 {[%clk 0:04:51.3]} 7... d6 {[%clk 0:04:51.5]} 8. O-O {[%clk 0:04:50.4]}
8... Be7 {[%clk 0:04:50]} 9. Nbd2 {[%clk 0:04:48.3]} 9... O-O {[%clk 0:04:48.6]}
10. Qe2 {[%clk 0:04:46.4]} 10... Nd5 {[%clk 0:04:46.3]} 11. Qe4 {[%clk
0:04:44.1]} 11... g6 {[%clk 0:04:42.8]} 12. Ng5 {[%clk 0:04:40.9]} 12... Qc7
{[%clk 0:04:35.5]} 13. Qf3 {[%clk 0:04:37.8]} 13... Nxc3 {[%clk 0:04:25.7]} 14.
bxc3 {[%clk 0:04:35.7]} 14... Bxf3 {[%clk 0:04:23.5]} 15. Rxf3 {[%clk
0:04:34.4]} 15... Bxg5 {[%clk 0:04:22]} 16. fxg5 {[%clk 0:04:33.2]} 16... Qe7
{[%clk 0:04:17.7]} 17. Ne4 {[%clk 0:04:31.4]} 17... Nd7 {[%clk 0:04:13]} 18.
Nf6+ {[%clk 0:04:29.9]} 18... Nxf6 {[%clk 0:04:10.9]} 19. gxf6 {[%clk
0:04:29.3]} 19... Qc7 {[%clk 0:04:06]} 20. Bh6 {[%clk 0:04:28.7]} 20... Rfe8
{[%clk 0:04:03]} 21. Raf1 {[%clk 0:04:27.3]} 21... Qxc3 {[%clk 0:03:58.2]} 22.
Bxg6 {[%clk 0:04:25.3]} 22... Qxd4+ {[%clk 0:03:56.5]} 23. R3f2 {[%clk
0:04:19.8]} 23... hxg6 {[%clk 0:03:49.4]} 24. Bf4 {[%clk 0:04:14.9]} 24... Rac8
{[%clk 0:03:45.4]} 25. h4 {[%clk 0:04:11.2]} 25... Rc2 {[%clk 0:03:41.2]} 26. h5
{[%clk 0:04:04.7]} 26... Rxf2 {[%clk 0:03:39.6]} 27. Rxf2 {[%clk 0:04:03.4]}
27... Rc8 {[%clk 0:03:37.8]} 28. Kf1 {[%clk 0:04:00.3]} 28... Qd3+ {[%clk
0:03:30]} 29. Re2 {[%clk 0:03:57.7]} 29... Rc2 {[%clk 0:03:28.3]} 30. Kg1 {[%clk
0:03:52.5]} 30... Qxe2 {[%clk 0:03:26.8]} 31. hxg6 {[%clk 0:03:51.7]} 31...
Qxg2# {[%clk 0:03:24.5]} 0-1

[Event "Live Chess"]
[Site "Chess.com"]
[Date "2023.05.21"]
[Round "-"]
[White "Biranidun"]
[Black "elephantgerrald"]
[Result "0-1"]
[WhiteElo "2553"]
[BlackElo "762"]
[TimeControl "300"]
[EndTime "0:12:35 PDT"]
[Termination "elephantgerrald won by resignation"]

1. e4 {[%clk 0:04:58.7]} 1... e5 {[%clk 0:04:57.5]} 2. Nf3 {[%clk 0:04:57.6]}
2... Nc6 {[%clk 0:04:55]} 3. Bc4 {[%clk 0:04:56.4]} 3... Nf6 {[%clk 0:04:50.7]}
4. Ng5 {[%clk 0:04:55.9]} 4... d5 {[%clk 0:04:49.2]} 5. exd5 {[%clk 0:04:55.8]}
5... Na5 {[%clk 0:04:47.8]} 6. Bb5+ {[%clk 0:04:55.3]} 6... c6 {[%clk
0:04:46.5]} 7. dxc6 {[%clk 0:04:55.2]} 7... bxc6 {[%clk 0:04:45.2]} 8. Bd3
{[%clk 0:04:54.8]} 8... h6 {[%clk 0:04:40.1]} 9. Ne4 {[%clk 0:04:53.9]} 9...
Nxe4 {[%clk 0:04:36.8]} 10. Bxe4 {[%clk 0:04:53.8]} 10... Be7 {[%clk 0:04:33]}
11. O-O {[%clk 0:04:49.4]} 11... O-O {[%clk 0:04:31.5]} 12. d3 {[%clk
0:04:48.9]} 12... Bb7 {[%clk 0:04:25.7]} 13. Nc3 {[%clk 0:04:46.5]} 13... Bb4
{[%clk 0:04:22.6]} 14. Qg4 {[%clk 0:04:41]} 14... f5 {[%clk 0:04:16.1]} 15. Bxf5
{[%clk 0:04:39.5]} 15... Bxc3 {[%clk 0:04:12]} 16. bxc3 {[%clk 0:04:38.4]} 16...
c5 {[%clk 0:04:03.7]} 17. Rb1 {[%clk 0:04:30.3]} 17... Qd5 {[%clk 0:04:00.2]}
18. Be4 {[%clk 0:04:26.8]} 18... Qxa2 {[%clk 0:03:50]} 19. Rxb7 {[%clk
0:04:25.1]} 19... Nxb7 {[%clk 0:03:47.8]} 20. Bxb7 {[%clk 0:04:23.9]} 20... Rab8
{[%clk 0:03:44.5]} 21. Be4 {[%clk 0:04:17.2]} 21... Qxc2 {[%clk 0:03:40.8]} 22.
Bxh6 {[%clk 0:04:15.5]} 22... Qxf2+ {[%clk 0:03:25]} 23. Rxf2 {[%clk 0:04:05.7]}
23... Rb1+ {[%clk 0:03:21.7]} 0-1

[Event "Live Chess"]
[Site "Chess.com"]
[Date "2023.05.21"]
[Round "-"]
[White "YichenLFC"]
[Black "BJAW87"]
[Result "0-1"]
[WhiteElo "816"]
[BlackElo "1441"]
[TimeControl "300"]
[EndTime "0:12:45 PDT"]
[Termination "BJAW87 won on time"]

1. e4 {[%clk 0:04:57.4]} 1... c6 {[%clk 0:04:58.8]} 2. d4 {[%clk 0:04:55.1]}
2... d5 {[%clk 0:04:55.8]} 3. exd5 {[%clk 0:04:52.5]} 3... cxd5 {[%clk
0:04:54.8]} 4. Nc3 {[%clk 0:04:49.7]} 4... Nc6 {[%clk 0:04:51.7]} 5. Nf3 {[%clk
0:04:46.4]} 5... Nf6 {[%clk 0:04:50.7]} 6. Bd3 {[%clk 0:04:41.8]} 6... Bg4
{[%clk 0:04:49]} 7. h3 {[%clk 0:04:38.3]} 7... Bh5 {[%clk 0:04:48]} 8. g4 {[%clk
0:04:36.1]} 8... Bg6 {[%clk 0:04:45]} 9. Bxg6 {[%clk 0:04:33]} 9... hxg6 {[%clk
0:04:41.8]} 10. g5 {[%clk 0:04:26.5]} 10... Ne4 {[%clk 0:03:59.6]} 11. Bd2
{[%clk 0:04:09.4]} 11... e6 {[%clk 0:03:50.1]} 12. Qe2 {[%clk 0:04:02.9]} 12...
Nxd2 {[%clk 0:03:44.4]} 13. Qxd2 {[%clk 0:03:49.1]} 13... Qb6 {[%clk 0:03:32.8]}
14. O-O-O {[%clk 0:03:43]} 14... Bb4 {[%clk 0:03:25.9]} 15. a3 {[%clk
0:03:40.1]} 15... Ba5 {[%clk 0:03:10.8]} 16. b4 {[%clk 0:03:37.7]} 16... Nxb4
{[%clk 0:03:10.4]} 17. axb4 {[%clk 0:03:30.1]} 17... Bxb4 {[%clk 0:03:10.3]} 18.
Rdf1 {[%clk 0:03:13.7]} 18... Rc8 {[%clk 0:03:04.1]} 19. Qe3 {[%clk 0:02:40.3]}
19... Rxc3 {[%clk 0:02:52.9]} 20. Qe5 {[%clk 0:02:35.8]} 20... O-O {[%clk
0:02:21.2]} 21. Nd2 {[%clk 0:02:20.9]} 21... Rfc8 {[%clk 0:01:59.6]} 22. Kd1
{[%clk 0:01:54]} 22... Rxc2 {[%clk 0:01:54]} 23. Ke2 {[%clk 0:01:42.6]} 23...
Rxd2+ {[%clk 0:01:50.1]} 24. Kf3 {[%clk 0:01:40.4]} 24... Rc3+ {[%clk
0:01:38.8]} 25. Kg4 {[%clk 0:01:26.4]} 25... Rxd4+ {[%clk 0:01:35.7]} 26. f4
{[%clk 0:01:20.6]} 26... Qc5 {[%clk 0:01:07.3]} 27. h4 {[%clk 0:01:06.3]} 27...
Re4 {[%clk 0:00:56.1]} 28. Qb8+ {[%clk 0:00:47.4]} 28... Qc8 {[%clk 0:00:54.5]}
29. Qxc8+ {[%clk 0:00:42.2]} 29... Rxc8 {[%clk 0:00:54.4]} 30. Rc1 {[%clk
0:00:38.8]} 30... Rxc1 {[%clk 0:00:50.8]} 31. Rxc1 {[%clk 0:00:35.7]} 31... Rc4
{[%clk 0:00:50.3]} 32. Rxc4 {[%clk 0:00:27.3]} 32... dxc4 {[%clk 0:00:50.2]} 33.
Kf3 {[%clk 0:00:25.4]} 33... c3 {[%clk 0:00:49.7]} 34. Ke2 {[%clk 0:00:23.8]}
34... a5 {[%clk 0:00:49.2]} 35. Kd1 {[%clk 0:00:22.2]} 35... a4 {[%clk
0:00:48.9]} 36. Kc2 {[%clk 0:00:21]} 36... a3 {[%clk 0:00:48.6]} 37. Kb3 {[%clk
0:00:19.2]} 37... Bd6 {[%clk 0:00:45.2]} 38. Kxc3 {[%clk 0:00:15.9]} 38... Bxf4
{[%clk 0:00:44.1]} 39. Kb3 {[%clk 0:00:14.5]} 39... Bd6 {[%clk 0:00:43.5]} 40.
Ka2 {[%clk 0:00:12.8]} 40... f6 {[%clk 0:00:42.9]} 41. Kb3 {[%clk 0:00:05.5]}
41... fxg5 {[%clk 0:00:42.3]} 42. hxg5 {[%clk 0:00:01.8]} 42... e5 {[%clk
0:00:40.4]} 0-1

[Event "Live Chess"]
[Site "Chess.com"]
[Date "2023.05.21"]
[Round "-"]
[White "HoarseyHorsey"]
[Black "bedsdrout"]
[Result "1-0"]
[WhiteElo "1447"]
[BlackElo "339"]
[TimeControl "300"]
[EndTime "0:12:50 PDT"]
[Termination "HoarseyHorsey won by resignation"]

1. d4 {[%clk 0:04:59.5]} 1... d5 {[%clk 0:04:55.9]} 2. c4 {[%clk 0:04:58.6]}
2... dxc4 {[%clk 0:04:53.9]} 3. e4 {[%clk 0:04:54.9]} 3... Bg4 {[%clk
0:04:52.2]} 4. Qxg4 {[%clk 0:04:49.3]} 4... Nf6 {[%clk 0:04:50.6]} 5. Qd1 {[%clk
0:04:39.9]} 5... Nxe4 {[%clk 0:04:46.6]} 6. Bxc4 {[%clk 0:04:35.5]} 6... Nc6
{[%clk 0:04:35.2]} 7. Be3 {[%clk 0:04:26.6]} 7... e6 {[%clk 0:04:30.5]} 8. Nf3
{[%clk 0:04:16.9]} 8... Bb4+ {[%clk 0:04:02.3]} 9. Nbd2 {[%clk 0:04:02.5]} 9...
O-O {[%clk 0:03:56.9]} 10. O-O {[%clk 0:03:57.2]} 10... Ne5 {[%clk 0:03:33.4]}
11. Nxe5 {[%clk 0:03:51.4]} 11... Nf6 {[%clk 0:03:17.5]} 12. Ndf3 {[%clk
0:03:44.9]} 12... Ng4 {[%clk 0:03:08.6]} 13. Nxg4 {[%clk 0:03:33]} 13... Bd6
{[%clk 0:03:03.1]} 14. Nge5 {[%clk 0:03:30.3]} 14... Qf6 {[%clk 0:02:54.1]} 15.
Bg5 {[%clk 0:03:18.7]} 15... Qf5 {[%clk 0:02:38]} 16. Bd3 {[%clk 0:03:15.7]}
16... c5 {[%clk 0:02:28.9]} 17. Bxf5 {[%clk 0:03:13.8]} 17... exf5 {[%clk
0:02:25.5]} 18. dxc5 {[%clk 0:02:57]} 18... Bxc5 {[%clk 0:02:14.9]} 19. Qc2
{[%clk 0:02:53.3]} 19... f4 {[%clk 0:01:54.1]} 20. Bxf4 {[%clk 0:02:45.2]} 20...
b5 {[%clk 0:01:47.6]} 21. Qxc5 {[%clk 0:02:43.5]} 21... Rac8 {[%clk 0:01:41.1]}
22. Qxb5 {[%clk 0:02:41.7]} 22... Rb8 {[%clk 0:01:38.1]} 23. Qe2 {[%clk
0:02:40.4]} 23... Rb4 {[%clk 0:01:25.1]} 24. Nd3 {[%clk 0:02:30.1]} 24... Rbb8
{[%clk 0:01:05.6]} 25. Bxb8 {[%clk 0:02:27.8]} 25... h6 {[%clk 0:00:58.5]} 26.
Bxa7 {[%clk 0:02:26]} 26... Kh7 {[%clk 0:00:46.1]} 27. Qe4+ {[%clk 0:02:24.2]}
27... Kh8 {[%clk 0:00:37.3]} 28. Rac1 {[%clk 0:02:18.5]} 28... f5 {[%clk
0:00:28.1]} 29. Qb7 {[%clk 0:02:02.5]} 1-0

[Event "Live Chess"]
[Site "Chess.com"]
[Date "2023.05.21"]
[Round "-"]
[White "Tushinskiy"]
[Black "Supertromp"]
[Result "1-0"]
[WhiteElo "2176"]
[BlackElo "2126"]
[TimeControl "300"]
[EndTime "0:12:53 PDT"]
[Termination "Tushinskiy won by checkmate"]

1. d4 {[%clk 0:04:58]} 1... Nf6 {[%clk 0:04:58.7]} 2. c3 {[%clk 0:04:57.9]} 2...
g6 {[%clk 0:04:57.4]} 3. Nf3 {[%clk 0:04:57.8]} 3... Bg7 {[%clk 0:04:56.5]} 4.
Bf4 {[%clk 0:04:57.2]} 4... O-O {[%clk 0:04:55.6]} 5. Bg3 {[%clk 0:04:56.7]}
5... d6 {[%clk 0:04:54.9]} 6. Nbd2 {[%clk 0:04:56.1]} 6... Nbd7 {[%clk
0:04:44.1]} 7. e4 {[%clk 0:04:56]} 7... c5 {[%clk 0:04:38]} 8. d5 {[%clk
0:04:54.4]} 8... a6 {[%clk 0:04:32.7]} 9. Bd3 {[%clk 0:04:53.1]} 9... b5 {[%clk
0:04:31.4]} 10. Qe2 {[%clk 0:04:51.8]} 10... Nh5 {[%clk 0:04:24.7]} 11. O-O
{[%clk 0:04:49.3]} 11... Nxg3 {[%clk 0:04:23.1]} 12. hxg3 {[%clk 0:04:49.2]}
12... Bb7 {[%clk 0:04:15.4]} 13. Rad1 {[%clk 0:04:46.1]} 13... c4 {[%clk
0:04:06.8]} 14. Bb1 {[%clk 0:04:44.4]} 14... Nc5 {[%clk 0:04:06.3]} 15. Rfe1
{[%clk 0:04:42.8]} 15... Qd7 {[%clk 0:03:45.5]} 16. Nd4 {[%clk 0:04:40.6]} 16...
e5 {[%clk 0:03:39.3]} 17. N4f3 {[%clk 0:04:36.8]} 17... f5 {[%clk 0:03:31.9]}
18. Ng5 {[%clk 0:04:33.6]} 18... h6 {[%clk 0:03:25.9]} 19. Nh3 {[%clk
0:04:27.5]} 19... fxe4 {[%clk 0:03:10.7]} 20. Nxe4 {[%clk 0:04:25.1]} 20... Nxe4
{[%clk 0:03:05]} 21. Bxe4 {[%clk 0:04:22.3]} 21... Qf7 {[%clk 0:03:03.6]} 22. f4
{[%clk 0:04:17.6]} 22... Rae8 {[%clk 0:02:57.8]} 23. Qg4 {[%clk 0:04:12.7]}
23... Bc8 {[%clk 0:02:52]} 24. Qxg6 {[%clk 0:04:08.5]} 24... Bxh3 {[%clk
0:02:35.4]} 25. Qh7# {[%clk 0:04:06.1]} 1-0

[Event "Live Chess"]
[Site "Chess.com"]
[Date "2023.05.21"]
[Round "-"]
[White "Duke_of_Bebington"]
[Black "MJMykh"]
[Result "1-0"]
[WhiteElo "1583"]
[BlackElo "1023"]
[TimeControl "300"]
[EndTime "0:12:59 PDT"]
[Termination "Duke_of_Bebington won by checkmate"]

1. e4 {[%clk 0:04:58.5]} 1... e5 {[%clk 0:04:59.1]} 2. Nf3 {[%clk 0:04:57]} 2...
Nc6 {[%clk 0:04:57.3]} 3. Bc4 {[%clk 0:04:55.6]} 3... Bc5 {[%clk 0:04:56]} 4.
O-O {[%clk 0:04:51]} 4... h6 {[%clk 0:04:54.4]} 5. c3 {[%clk 0:04:44]} 5... Nf6
{[%clk 0:04:48.7]} 6. d4 {[%clk 0:04:42.2]} 6... exd4 {[%clk 0:04:48]} 7. cxd4
{[%clk 0:04:42]} 7... Bb6 {[%clk 0:04:43.6]} 8. e5 {[%clk 0:04:32.8]} 8... Ng8
{[%clk 0:04:41.8]} 9. Nc3 {[%clk 0:04:23.8]} 9... Nge7 {[%clk 0:04:39.7]} 10.
Nh4 {[%clk 0:03:55.2]} 10... O-O {[%clk 0:04:30.3]} 11. Be3 {[%clk 0:03:37.9]}
11... Na5 {[%clk 0:04:26.3]} 12. Bd3 {[%clk 0:03:33.5]} 12... Nac6 {[%clk
0:04:19.9]} 13. Bc2 {[%clk 0:03:26.4]} 13... Nb4 {[%clk 0:04:17.1]} 14. Bb3
{[%clk 0:03:20.8]} 14... Nbc6 {[%clk 0:04:07.8]} 15. a3 {[%clk 0:03:01.8]} 15...
Na5 {[%clk 0:04:00.3]} 16. Bc2 {[%clk 0:03:00.9]} 16... Nc4 {[%clk 0:03:58.7]}
17. Qd3 {[%clk 0:02:58.7]} 17... Nxe3 {[%clk 0:03:57.2]} 18. Qh7# {[%clk
0:02:56.9]} 1-0

[Event "Live Chess"]
[Site "Chess.com"]
[Date "2023.05.21"]
[Round "-"]
[White "Mikhail_Golubev"]
[Black "KGreenGator"]
[Result "1-0"]
[WhiteElo "2472"]
[BlackElo "1803"]
[TimeControl "300"]
[EndTime "0:13:01 PDT"]
[Termination "Mikhail_Golubev won by checkmate"]

1. e4 {[%clk 0:04:56.9]} 1... c5 {[%clk 0:04:57.8]} 2. Nf3 {[%clk 0:04:53.8]}
2... Nc6 {[%clk 0:04:56.7]} 3. Nc3 {[%clk 0:04:51.3]} 3... e5 {[%clk 0:04:55.5]}
4. Bc4 {[%clk 0:04:48.4]} 4... d6 {[%clk 0:04:53.2]} 5. d3 {[%clk 0:04:47.2]}
5... Be7 {[%clk 0:04:51.1]} 6. Nd2 {[%clk 0:04:41.9]} 6... Nf6 {[%clk 0:04:47]}
7. Nf1 {[%clk 0:04:40.7]} 7... a6 {[%clk 0:04:42.3]} 8. Ne3 {[%clk 0:04:38.3]}
8... b5 {[%clk 0:04:37.3]} 9. Bd5 {[%clk 0:04:30.9]} 9... Nxd5 {[%clk
0:04:34.3]} 10. Ncxd5 {[%clk 0:04:29.9]} 10... Bg5 {[%clk 0:04:24.2]} 11. O-O
{[%clk 0:04:26.5]} 11... O-O {[%clk 0:04:21.7]} 12. Qh5 {[%clk 0:04:07.7]} 12...
Nd4 {[%clk 0:04:10.5]} 13. c3 {[%clk 0:03:13.8]} 13... Ne6 {[%clk 0:04:06.3]}
14. Nf5 {[%clk 0:03:06.3]} 14... g6 {[%clk 0:03:57]} 15. Bxg5 {[%clk 0:02:58.9]}
15... Nxg5 {[%clk 0:03:31.5]} 16. Nde7+ {[%clk 0:02:53.7]} 16... Kh8 {[%clk
0:03:21.3]} 17. Qxg5 {[%clk 0:02:52]} 17... f6 {[%clk 0:03:12.3]} 18. Nxg6+
{[%clk 0:02:42]} 18... hxg6 {[%clk 0:02:58]} 19. Qh6+ {[%clk 0:02:39.1]} 19...
Kg8 {[%clk 0:02:56.2]} 20. Qg7# {[%clk 0:02:38.5]} 1-0

[Event "Live Chess"]
[Site "Chess.com"]
[Date "2023.05.21"]
[Round "-"]
[White "ProfPoisson"]
[Black "febray_27"]
[Result "0-1"]
[WhiteElo "1189"]
[BlackElo "2006"]
[TimeControl "300"]
[EndTime "0:13:19 PDT"]
[Termination "febray_27 won on time"]

1. e4 {[%clk 0:04:54.6]} 1... c5 {[%clk 0:04:58.9]} 2. Nf3 {[%clk 0:04:51.6]}
2... e6 {[%clk 0:04:58.2]} 3. c3 {[%clk 0:04:48.4]} 3... Nc6 {[%clk 0:04:54.1]}
4. d4 {[%clk 0:04:45.7]} 4... cxd4 {[%clk 0:04:53.1]} 5. cxd4 {[%clk 0:04:43.8]}
5... d6 {[%clk 0:04:43.1]} 6. Bb5 {[%clk 0:04:37.4]} 6... a6 {[%clk 0:04:39.1]}
7. Ba4 {[%clk 0:04:30.8]} 7... b5 {[%clk 0:04:30.6]} 8. Bb3 {[%clk 0:04:28.1]}
8... Nf6 {[%clk 0:04:18.5]} 9. Qe2 {[%clk 0:04:08.5]} 9... d5 {[%clk 0:04:06.6]}
10. exd5 {[%clk 0:04:01.4]} 10... Nxd5 {[%clk 0:04:05.3]} 11. O-O {[%clk
0:03:50.1]} 11... Be7 {[%clk 0:04:01.6]} 12. Nc3 {[%clk 0:03:44]} 12... Nxc3
{[%clk 0:03:58.5]} 13. bxc3 {[%clk 0:03:41.7]} 13... O-O {[%clk 0:03:58.1]} 14.
Bc2 {[%clk 0:03:31.4]} 14... Bf6 {[%clk 0:03:33.8]} 15. h4 {[%clk 0:03:27.3]}
15... Bxh4 {[%clk 0:03:27.2]} 16. Nxh4 {[%clk 0:03:24.5]} 16... Qxh4 {[%clk
0:03:26.5]} 17. Be4 {[%clk 0:03:13.2]} 17... Bb7 {[%clk 0:03:24.6]} 18. Ba3
{[%clk 0:03:05.8]} 18... Rfe8 {[%clk 0:03:16.2]} 19. Rad1 {[%clk 0:02:36.8]}
19... Rad8 {[%clk 0:03:06.3]} 20. g3 {[%clk 0:02:23.3]} 20... Qh6 {[%clk
0:02:29.9]} 21. Bc1 {[%clk 0:02:19.9]} 21... Qf6 {[%clk 0:02:28.4]} 22. Kg2
{[%clk 0:02:03.2]} 22... Qe7 {[%clk 0:02:17.2]} 23. Rh1 {[%clk 0:02:01]} 23...
f5 {[%clk 0:02:08.3]} 24. Qh5 {[%clk 0:01:54.8]} 24... g6 {[%clk 0:02:04.1]} 25.
Qh6 {[%clk 0:01:27.6]} 25... Rd7 {[%clk 0:01:46.9]} 26. Bxc6 {[%clk 0:01:23.9]}
26... Bxc6+ {[%clk 0:01:45.6]} 27. f3 {[%clk 0:01:10.7]} 27... e5 {[%clk
0:01:05.7]} 28. Bg5 {[%clk 0:01:08.3]} 28... Qg7 {[%clk 0:01:02]} 29. Rde1
{[%clk 0:00:53.6]} 29... e4 {[%clk 0:00:53]} 30. Kf2 {[%clk 0:00:22.3]} 30...
Qxh6 {[%clk 0:00:44.3]} 31. Rxh6 {[%clk 0:00:18.3]} 31... a5 {[%clk 0:00:14.2]}
0-1